bitfinex-derivatives/quotes_BTCF0:USTF0_20260118
["timestamp","ask_amount","ask_price","bid_price","bid_amount"]
[1768761255199,0.00015626,95438.0,95423.0,0.00015724]
[1768761255404,0.00015626,95439.0,95423.0,0.00015724]
[1768761255599,0.00015626,95439.0,95423.0,0.09899496]
[1768761255792,0.11271009,95445.0,95423.0,0.19712737]
[1768761255793,0.11271009,95444.0,95423.0,0.19712737]
[1768761255990,0.00015626,95440.0,95423.0,0.19712737]
[1768761256390,0.00015626,95438.0,95423.0,0.19712737]
[1768761256595,0.00015626,95440.0,95423.0,0.19712737]
[1768761256904,0.00015626,95439.0,95423.0,0.19712737]
[1768761257290,0.00015626,95437.0,95423.0,0.19712737]
[1768761257495,0.00015626,95439.0,95423.0,0.19712737]
[1768761258005,0.00015626,95437.0,95423.0,0.19712737]
[1768761258306,0.00015626,95439.0,95423.0,0.19712737]
[1768761258702,0.00015626,95439.0,95423.0,0.09828965]
[1768761258907,0.00015626,95437.0,95423.0,0.09828965]
[1768761259102,0.00015626,95439.0,95423.0,0.09828965]
[1768761259307,0.00015626,95438.0,95423.0,0.09828965]
[1768761259906,0.00015626,95436.0,95423.0,0.09828965]
[1768761260205,0.00015626,95438.0,95423.0,0.00015724]
[1768761260607,0.00015626,95436.0,95423.0,0.00015724]
[1768761260801,0.00015626,95437.0,95423.0,0.00015724]
[1768761261308,0.00015626,95435.0,95423.0,0.00015724]
[1768761261607,0.00015626,95435.0,95416.0,0.09436]
[1768761261608,0.11271009,95431.0,95416.0,0.09436]
[1768761262008,0.11271009,95431.0,95420.0,0.10478994]
[1768761262201,0.09525636,95432.0,95416.0,0.09436]
[1768761262396,0.12906169,95435.0,95416.0,0.09436]
[1768761262605,0.12906169,95435.0,95417.0,0.10478994]
[1768761262814,0.11857969,95422.0,95409.0,0.09436]
[1768761262995,0.11857969,95421.0,95409.0,0.09436]
[1768761263309,0.00015626,95420.0,95412.0,0.10479543]
[1768761263511,0.11857969,95420.0,95406.0,0.09436]
[1768761264009,0.2174001,95422.0,95406.0,0.09436]
[1768761264204,0.21755636,95422.0,95406.0,0.09436]
[1768761264412,0.2174001,95422.0,95407.0,0.10480422]
[1768761264807,0.00015626,95421.0,95407.0,0.10480422]
[1768761265114,0.00015626,95421.0,95410.0,0.10453359]
[1768761265406,0.00015626,95420.0,95410.0,0.10453359]
[1768761265914,0.00015626,95418.0,95410.0,0.10453359]
[1768761266107,0.00015626,95420.0,95408.0,0.10453359]
[1768761266308,0.00015626,95421.0,95410.0,0.10453359]
[1768761266710,0.00015626,95418.0,95410.0,0.10453359]
[1768761267012,0.00015626,95418.0,95408.0,0.10480477]
[1768761267013,0.00015724,95423.0,95408.0,0.10453359]
[1768761267205,0.00015626,95420.0,95410.0,0.10453359]
[1768761267407,0.00015626,95421.0,95410.0,0.10453359]
[1768761267598,0.00015626,95419.0,95410.0,0.10453359]
[1768761268010,0.00015626,95417.0,95410.0,0.10453359]
[1768761268211,0.00015626,95419.0,95410.0,0.10453359]
[1768761268619,0.00015626,95417.0,95410.0,0.10453359]
[1768761268920,0.00015626,95419.0,95410.0,0.10453359]
[1768761269301,0.00015626,95417.0,95410.0,0.10453359]
[1768761269505,0.00015626,95419.0,95410.0,0.10453359]
[1768761269906,0.00015626,95419.0,95406.0,0.09436]
[1768761269907,0.2174001,95444.0,95418.0,0.11201091]
[1768761270111,0.010481,95437.0,95418.0,0.11201091]
[1768761270313,0.10930141,95437.0,95418.0,0.11201091]
[1768761270513,0.09882041,95437.0,95420.0,0.10453359]
[1768761270707,0.2174001,95437.0,95420.0,0.10453359]
[1768761270909,0.11857969,95436.0,95417.0,0.09652493]
[1768761271109,0.11857969,95436.0,95420.0,0.10453359]
[1768761273117,0.09882041,95437.0,95420.0,0.10453359]
[1768761273320,0.11857969,95436.0,95419.0,0.00015724]
[1768761273507,0.11857969,95436.0,95420.0,0.10453359]
[1768761274914,0.11857969,95436.0,95419.0,0.00015724]
[1768761275124,0.11857969,95436.0,95420.0,0.10453359]
[1768761275813,0.11857969,95436.0,95419.0,0.00015724]
[1768761276020,0.11857969,95436.0,95420.0,0.10453359]
[1768761276523,0.010482,95435.0,95419.0,0.00015724]
[1768761276714,0.12411284,95435.0,95420.0,0.10453359]
[1768761276919,0.010482,95435.0,95420.0,0.10453359]
[1768761277216,0.22864543,95440.0,95420.0,0.21899918]
[1768761277919,0.12411184,95440.0,95420.0,0.21899918]
[1768761278220,0.22864543,95440.0,95420.0,0.21899918]
[1768761278422,0.010481,95437.0,95420.0,0.21899918]
[1768761278614,0.010482,95434.0,95419.0,0.00015724]
[1768761278922,0.11363084,95433.0,95419.0,0.00015724]
[1768761279122,0.10453359,95430.0,95419.0,0.00015724]
[1768761279326,0.11363084,95428.0,95407.0,0.10136093]
[1768761279505,0.11363084,95428.0,95410.0,0.10453359]
[1768761279820,0.11363084,95428.0,95414.0,0.10478885]
[1768761280017,0.11363084,95428.0,95422.0,0.03755957]
[1768761280216,0.11363084,95428.0,95419.0,0.05633935]
[1768761282125,0.09397739,95429.0,95419.0,0.05633935]
[1768761282422,0.010482,95435.0,95419.0,0.05633935]
[1768761282921,0.010482,95435.0,95420.0,0.05633935]
[1768761283124,0.12411284,95435.0,95420.0,0.16087294]
[1768761283831,0.12411284,95435.0,95420.0,0.05633935]
[1768761284128,0.12411284,95435.0,95420.0,0.16087294]
[1768761284428,0.12411284,95435.0,95420.0,0.05633935]
[1768761286521,0.12411284,95435.0,95421.0,0.05633935]
[1768761289128,0.11363084,95434.0,95421.0,0.05633935]
[1768761289319,0.11363084,95434.0,95422.0,0.05633935]
[1768761290218,0.11363084,95430.0,95422.0,0.05633935]
[1768761290920,0.10445939,95431.0,95422.0,0.05633935]
[1768761292325,0.010482,95431.0,95423.0,0.05633935]
[1768761293126,0.1236845,95431.0,95423.0,0.05633935]
[1768761293328,0.010482,95431.0,95423.0,0.05633935]
[1768761294133,0.010482,95428.0,95414.0,0.07514814]
[1768761294431,0.010483,95425.0,95415.0,0.10479214]
[1768761294639,0.1132025,95416.0,95403.0,0.07514814]
[1768761294932,0.10399118,95417.0,95404.0,0.10479983]
[1768761295326,0.10399118,95417.0,95400.0,0.17968173]
[1768761295526,0.10399118,95417.0,95401.0,0.10479983]
[1768761295727,0.010483,95421.0,95401.0,0.10479983]
[1768761295922,0.010483,95421.0,95401.0,0.22475282]
[1768761295923,0.10453359,95420.0,95401.0,0.22475282]
[1768761296635,0.19804077,95420.0,95401.0,0.10479983]
[1768761296829,0.1236855,95419.0,95401.0,0.10479983]
[1768761297320,0.21719268,95419.0,95401.0,0.10479983]
[1768761297629,0.010484,95414.0,95401.0,0.10479983]
[1768761298022,0.010484,95414.0,95400.0,0.10453359]
[1768761298219,0.1132025,95413.0,95401.0,0.10481081]
[1768761298426,0.010484,95412.0,95401.0,0.10481081]
[1768761298623,0.09350718,95414.0,95400.0,0.10453359]
[1768761298947,0.010484,95413.0,95399.0,0.10481466]
[1768761299131,0.010484,95410.0,95398.0,0.07514814]
[1768761299436,0.1132025,95409.0,95397.0,0.09436]
[1768761300433,0.1132025,95409.0,95393.0,0.07514814]
[1768761300639,0.1132025,95407.0,95393.0,0.07514814]
[1768761300937,0.09350718,95407.0,95394.0,0.1048185]
[1768761301233,0.1132025,95416.0,95393.0,0.11995299]
[1768761301533,0.1132025,95416.0,95394.0,0.11995299]
[1768761301728,0.1132025,95416.0,95395.0,0.13043899]
[1768761302127,0.1132025,95416.0,95396.0,0.11995299]
[1768761302435,0.1132025,95416.0,95397.0,0.13043899]
[1768761302835,0.21773609,95410.0,95394.0,0.010486]
[1768761303532,0.21773609,95410.0,95391.0,0.11995299]
[1768761303835,0.10453359,95410.0,95391.0,0.22477259]
[1768761304045,0.10453359,95410.0,95392.0,0.11995299]
[1768761304538,0.1132025,95413.0,95392.0,0.11995299]
[1768761304539,0.1132025,95413.0,95393.0,0.010486]
[1768761304737,0.1132025,95413.0,95393.0,0.1153056]
[1768761304928,0.1132025,95413.0,95393.0,0.1048196]
[1768761305236,0.1132025,95413.0,95393.0,0.22477259]
[1768761306642,0.1132025,95413.0,95394.0,0.010486]
[1768761307235,0.20670968,95412.0,95392.0,0.010486]
[1768761307434,0.1132025,95411.0,95392.0,0.010486]
[1768761307636,0.21773609,95410.0,95392.0,0.010486]
[1768761307833,0.09350718,95412.0,95393.0,0.11995299]
[1768761308023,0.1132025,95416.0,95397.0,0.010486]
[1768761308232,0.1132025,95414.0,95397.0,0.010486]
[1768761308435,0.1132025,95414.0,95394.0,0.11995299]
[1768761308936,0.1132025,95414.0,95395.0,0.010486]
[1768761309639,0.10453359,95410.0,95395.0,0.010486]
[1768761310438,0.21773609,95410.0,95392.0,0.090061]
[1768761310733,0.21773609,95410.0,95393.0,0.10481685]
[1768761310936,0.09350718,95401.0,95380.0,0.07514814]
[1768761311148,0.20670968,95397.0,95381.0,0.104847]
[1768761311439,0.10453359,95392.0,95383.0,0.1048207]
[1768761311641,0.1132025,95396.0,95383.0,0.1048207]
[1768761311938,0.1132025,95396.0,95386.0,0.010487]
[1768761312526,0.20670968,95395.0,95377.0,0.104848]
[1768761312735,0.21773609,95392.0,95377.0,0.010488]
[1768761312933,0.1132025,95391.0,95377.0,0.010488]
[1768761313235,0.1132025,95391.0,95380.0,0.010488]
[1768761313427,0.20670968,95391.0,95386.0,0.001]
[1768761313828,0.20670968,95390.0,95371.0,0.11995299]
[1768761314033,0.20670968,95390.0,95371.0,0.21431299]
[1768761314339,0.31124327,95390.0,95375.0,0.10483444]
[1768761314541,0.31124327,95390.0,95371.0,0.21431299]
[1768761314927,7.667e-05,95389.0,95372.0,0.10484103]
[1768761315430,7.667e-05,95389.0,95376.0,0.010488]
[1768761315631,0.1132025,95387.0,95372.0,0.11532903]
[1768761315822,0.10453359,95382.0,95372.0,0.010488]
[1768761316026,0.10453359,95382.0,95374.0,0.010488]
[1768761316326,0.10453359,95384.0,95370.0,0.010489]
[1768761316536,0.10453359,95380.0,95370.0,0.010489]
[1768761316731,0.10453359,95380.0,95375.0,0.10484103]
[1768761317032,0.1132025,95384.0,95368.0,0.0944]
[1768761317241,0.10453359,95380.0,95368.0,0.0944]
[1768761317427,0.1132025,95379.0,95371.0,0.10484708]
[1768761317625,0.1132025,95379.0,95368.0,0.0944]
[1768761318632,0.10453359,95380.0,95368.0,0.0944]
[1768761318937,0.10453359,95380.0,95366.0,0.010489]
[1768761319143,0.09350718,95382.0,95366.0,0.010489]
[1768761319438,0.10453359,95380.0,95367.0,0.10485092]
[1768761320033,0.1132025,95381.0,95367.0,0.10485092]
[1768761320236,0.10453359,95380.0,95367.0,0.10485092]
[1768761320831,0.1132025,95378.0,95367.0,0.10485092]
[1768761321045,0.20670968,95377.0,95367.0,0.10485092]
[1768761321245,0.1132025,95375.0,95367.0,0.10485092]
[1768761321632,0.09350718,95376.0,95367.0,0.10485092]
[1768761322038,0.09350718,95376.0,95367.0,0.10477341]
[1768761322442,0.09350718,95376.0,95360.0,0.19893359]
[1768761322443,0.09350718,95376.0,95365.0,0.010489]
[1768761322738,0.09350718,95376.0,95365.0,0.11534267]
[1768761323046,0.1132025,95378.0,95365.0,0.11534267]
[1768761325437,0.0925823,95381.0,95368.0,0.010489]
[1768761326042,0.0925823,95381.0,95364.0,0.01279595]
[1768761326544,0.0925823,95381.0,95366.0,0.010489]
[1768761327947,0.0925823,95381.0,95368.0,0.010489]
[1768761328449,0.0925823,95381.0,95365.0,0.10485092]
[1768761329550,0.0925823,95381.0,95366.0,0.010489]
[1768761329947,0.0925823,95381.0,95368.0,0.010489]
[1768761331456,0.0944,95392.0,95373.0,0.20827967]
[1768761331749,0.0944,95392.0,95375.0,0.11179571]
[1768761334250,0.0944,95392.0,95374.0,0.09648396]
[1768761336355,0.11418324,95389.0,95368.0,0.12228471]
[1768761336557,7.667e-05,95389.0,95369.0,0.20500313]
[1768761336853,7.667e-05,95389.0,95372.0,0.010488]
[1768761337054,7.667e-05,95389.0,95372.0,0.12616008]
[1768761337457,7.667e-05,95389.0,95372.0,0.11567208]
[1768761337860,7.667e-05,95389.0,95370.0,0.09320742]
[1768761338746,0.01056367,95389.0,95370.0,0.09320742]
[1768761339758,0.01056367,95389.0,95370.0,0.2088795]
[1768761339966,0.22239169,95389.0,95368.0,0.010489]
[1768761340162,0.11707281,95388.0,95368.0,0.010489]
[1768761340462,0.11707281,95388.0,95368.0,0.12616108]
[1768761340851,7.667e-05,95389.0,95370.0,0.010489]
[1768761341157,7.667e-05,95389.0,95372.0,0.2088795]
[1768761341360,7.667e-05,95389.0,95373.0,0.11567208]
[1768761342158,7.667e-05,95389.0,95373.0,0.2088795]
[1768761342365,7.667e-05,95389.0,95374.0,0.2088795]
[1768761342864,0.01056367,95389.0,95374.0,0.2088795]
[1768761345361,0.09670587,95409.0,95390.0,0.11567208]
[1768761345562,0.02368887,95408.0,95391.0,0.11567208]
[1768761345757,0.00230587,95409.0,95386.0,0.010487]
[1768761345758,0.00230587,95409.0,95392.0,0.2088795]
[1768761345955,0.00230587,95409.0,95393.0,0.2088795]
[1768761346156,0.00230587,95409.0,95395.0,0.2088795]
[1768761348371,0.00230587,95409.0,95391.0,0.11582932]
[1768761350069,0.00230587,95409.0,95391.0,0.20903674]
[1768761350975,0.00230587,95409.0,95392.0,0.11567208]
[1768761351170,0.00230587,95409.0,95393.0,0.11567208]
[1768761351484,0.00230587,95409.0,95394.0,0.11567208]
[1768761352275,0.00230587,95409.0,95394.0,0.21308365]
[1768761352576,0.00230587,95409.0,95395.0,0.11715813]
[1768761353076,0.00230587,95409.0,95395.0,0.2145697]
[1768761353273,0.00230587,95409.0,95396.0,0.11715813]
[1768761353472,0.00230587,95409.0,95392.0,0.11715813]
[1768761354175,0.00230587,95409.0,95392.0,0.2145697]
[1768761354363,0.00230587,95409.0,95393.0,0.2145697]
[1768761354568,0.00230587,95409.0,95394.0,0.11715813]
[1768761355679,0.00230587,95409.0,95395.0,0.11715813]
[1768761356387,0.00230587,95409.0,95395.0,0.2145697]
[1768761356684,0.00230587,95409.0,95396.0,0.11715813]
[1768761359076,0.0944,95411.0,95396.0,0.11715813]
[1768761359277,0.0944,95411.0,95397.0,0.11715813]
[1768761360381,0.010484,95412.0,95391.0,0.00015724]
[1768761360382,0.010483,95420.0,95403.0,0.2145697]
[1768761360569,0.010483,95418.0,95405.0,0.11715813]
[1768761361275,0.0944,95417.0,95405.0,0.11715813]
[1768761361578,0.010483,95418.0,95405.0,0.11715813]
[1768761361779,0.010484,95416.0,95401.0,0.11715813]
[1768761361985,0.010484,95416.0,95401.0,0.2145697]
[1768761362283,0.010484,95416.0,95402.0,0.11715813]
[1768761362686,0.0944,95417.0,95402.0,0.11715813]
[1768761362884,0.0944,95417.0,95404.0,0.09741157]
[1768761363187,0.0944,95417.0,95406.0,0.11715813]
[1768761363886,0.104884,95417.0,95406.0,0.11715813]
[1768761364183,0.0944,95417.0,95398.0,0.09741157]
[1768761364376,0.010484,95412.0,95398.0,0.09741157]
[1768761366492,0.010484,95412.0,95398.0,0.2145697]
[1768761368480,0.21134965,95417.0,95398.0,0.2145697]
[1768761368682,0.010484,95410.0,95398.0,0.2145697]
[1768761368874,0.010484,95410.0,95391.0,0.00015724]
[1768761369078,0.010484,95410.0,95392.0,0.2145697]
[1768761369283,0.010484,95410.0,95393.0,0.11715813]
[1768761369582,0.010484,95410.0,95394.0,0.11715813]
[1768761370084,0.010484,95410.0,95396.0,0.11715813]
[1768761370275,0.010484,95410.0,95396.0,0.17342877]
[1768761370880,0.010484,95410.0,95397.0,0.11715813]
[1768761371084,0.010485,95408.0,95397.0,0.11715813]
[1768761371388,0.010485,95408.0,95396.0,0.15368221]
[1768761371389,0.010485,95404.0,95396.0,0.05627064]
[1768761371579,0.010485,95404.0,95396.0,0.17342877]
[1768761371779,0.010485,95404.0,95397.0,0.11715813]
[1768761372184,0.010485,95404.0,95397.0,0.17342877]
[1768761372382,0.010485,95404.0,95397.0,0.05627064]
[1768761372587,0.010485,95404.0,95397.0,6.4e-07]
[1768761372893,0.010485,95404.0,95395.0,0.11715813]
[1768761374394,0.010485,95404.0,95391.0,0.00015724]
[1768761374891,0.010485,95404.0,95392.0,0.10482235]
[1768761375283,0.010485,95404.0,95392.0,0.22198048]
[1768761375585,0.010484,95408.0,95393.0,0.11715813]
[1768761376192,0.010484,95408.0,95394.0,0.10482125]
[1768761376500,0.0944,95410.0,95395.0,0.11715813]
[1768761377880,0.0944,95410.0,95392.0,0.09741157]
[1768761377881,0.0944,95410.0,95397.0,0.11715813]
[1768761378085,0.0944,95410.0,95398.0,0.11715813]
[1768761378682,0.0944,95410.0,95399.0,0.11715813]
[1768761381998,0.0944,95410.0,95400.0,0.11715813]
[1768761382187,0.0944,95410.0,95401.0,0.21429811]
[1768761382392,0.0944,95413.0,95402.0,0.11515124]
[1768761382594,0.0944,95413.0,95401.0,0.09713998]
[1768761382996,0.010484,95412.0,95395.0,0.09713998]
[1768761383197,0.010484,95412.0,95395.0,0.21229122]
[1768761383694,0.010484,95412.0,95392.0,0.07514814]
[1768761383905,0.1191448,95412.0,95392.0,0.19029938]
[1768761384098,0.010484,95412.0,95394.0,0.11515124]
[1768761386788,0.1191448,95410.0,95392.0,0.07514814]
[1768761386993,0.22371342,95410.0,95392.0,0.07514814]
[1768761387201,0.22371342,95410.0,95394.0,0.1048185]
[1768761387498,0.1086608,95410.0,95392.0,0.07514814]
[1768761387704,0.010485,95407.0,95391.0,0.11530848]
[1768761388201,0.22371342,95410.0,95391.0,0.11530848]
[1768761388396,0.22371342,95410.0,95392.0,0.010486]
[1768761388701,0.11505262,95410.0,95392.0,0.12563724]
[1768761389093,0.010484,95410.0,95392.0,0.12563724]
[1768761390803,0.010484,95410.0,95393.0,0.09713998]
[1768761391004,0.010484,95410.0,95394.0,0.11515124]
[1768761391206,0.010484,95410.0,95394.0,0.21229122]
[1768761391396,0.010484,95410.0,95395.0,0.11515124]
[1768761395209,0.11505262,95410.0,95395.0,0.11515124]
[1768761397212,0.0944,95409.0,95395.0,0.11515124]
[1768761398913,0.010485,95408.0,95395.0,0.11515124]
[1768761400916,0.010485,95406.0,95392.0,0.09161711]
[1768761401112,0.010485,95406.0,95393.0,0.11440473]
[1768761401415,0.010485,95406.0,95394.0,0.11440473]
[1768761401601,0.010485,95406.0,95394.0,0.20602184]
[1768761401806,0.104884,95409.0,95395.0,0.11440473]
[1768761402105,0.010485,95406.0,95395.0,0.11440473]
[1768761407927,0.0944,95409.0,95396.0,0.11440473]
[1768761411025,0.0944,95409.0,95398.0,0.11440473]
[1768761411231,0.0944,95409.0,95399.0,0.11440473]
[1768761413332,0.0944,95409.0,95396.0,0.10880311]
[1768761415726,0.0944,95409.0,95399.0,0.10880311]
[1768761415936,0.0944,95409.0,95402.0,0.10880311]
[1768761416135,0.0944,95410.0,95402.0,0.10880311]
[1768761417642,0.0944,95410.0,95400.0,0.10456862]
[1768761417844,0.0944,95410.0,95398.0,0.10880311]
[1768761420746,0.010484,95409.0,95396.0,0.09012234]
[1768761420932,0.010484,95409.0,95394.0,0.10880311]
[1768761421134,0.010484,95409.0,95399.0,0.10456862]
[1768761422035,0.010484,95409.0,95397.0,0.10880311]
[1768761422740,0.0944,95410.0,95397.0,0.10880311]
[1768761422948,0.0944,95415.0,95403.0,0.19892545]
[1768761423243,0.010484,95414.0,95404.0,0.10880311]
[1768761423443,0.0944,95420.0,95405.0,0.10880311]
[1768761424047,0.0944,95420.0,95410.0,0.10456862]
[1768761424244,0.104883,95420.0,95410.0,0.10456862]
[1768761424545,0.104883,95420.0,95409.0,0.10880311]
[1768761425847,0.0944,95420.0,95410.0,0.10456862]
[1768761426048,0.0944,95420.0,95410.0,0.10880311]
[1768761426635,0.010483,95419.0,95406.0,0.10880311]
[1768761427245,0.0944,95420.0,95406.0,0.10880311]
[1768761428447,0.010483,95419.0,95406.0,0.10880311]
[1768761428649,0.010484,95416.0,95406.0,0.10880311]
[1768761433543,0.010484,95413.0,95406.0,1.1e-07]
[1768761433747,0.010484,95413.0,95400.0,0.19469096]
[1768761434254,0.010484,95410.0,95401.0,0.10480971]
[1768761434450,0.010484,95410.0,95395.0,0.0944]
[1768761434853,0.010484,95410.0,95395.0,0.19921466]
[1768761435655,0.010484,95413.0,95393.0,0.11928911]
[1768761435853,0.010484,95413.0,95394.0,0.10880311]
[1768761436055,0.010484,95413.0,95400.0,0.10456862]
[1768761436655,0.010484,95413.0,95397.0,0.10880311]
[1768761436854,0.010484,95413.0,95400.0,0.10456862]
[1768761437953,0.09738547,95406.0,95393.0,0.07514814]
[1768761438144,0.010485,95399.0,95391.0,0.00015724]
[1768761438345,0.010485,95399.0,95386.0,0.18395125]
[1768761441760,0.010485,95399.0,95386.0,0.18324847]
[1768761443163,0.09783995,95403.0,95385.0,0.0944]
[1768761443460,0.10456862,95400.0,95380.0,0.19469096]
[1768761443760,0.010486,95395.0,95381.0,0.22002228]
[1768761443961,0.010486,95395.0,95381.0,0.10483004]
[1768761444458,0.010486,95395.0,95381.0,0.22002228]
[1768761444659,0.010486,95395.0,95382.0,0.11519224]
[1768761445247,0.010486,95395.0,95383.0,0.22002722]
[1768761445651,0.010486,95395.0,95383.0,0.11519224]
[1768761445864,0.010486,95395.0,95384.0,0.10483444]
[1768761446361,0.010486,95395.0,95384.0,0.22002668]
[1768761446659,0.010486,95395.0,95380.0,0.21976086]
[1768761446860,0.010486,95395.0,95381.0,0.11519224]
[1768761447057,0.010486,95395.0,95382.0,0.11519224]
[1768761450355,0.010486,95392.0,95378.0,0.20959224]
[1768761450560,0.09783995,95396.0,95376.0,0.11519224]
[1768761450762,0.010486,95391.0,95377.0,0.11519224]
[1768761451360,0.010486,95391.0,95378.0,0.10483938]
[1768761451561,0.010486,95391.0,95379.0,0.11519224]
[1768761452266,0.010487,95388.0,95376.0,0.11519224]
[1768761452770,0.010486,95392.0,95376.0,0.11519224]
[1768761452965,0.010487,95389.0,95376.0,0.11519224]
[1768761453852,0.010486,95390.0,95376.0,0.11519224]
[1768761454863,0.010487,95387.0,95376.0,0.11519224]
[1768761463570,0.010487,95387.0,95371.0,0.0944]
[1768761463774,0.010487,95387.0,95372.0,0.10840288]
[1768761464072,0.010487,95387.0,95373.0,0.10840288]
[1768761464674,0.010486,95390.0,95374.0,0.10484433]
[1768761465281,0.010486,95390.0,95375.0,0.10196717]
[1768761465575,0.010487,95388.0,95375.0,0.10196717]
[1768761469176,0.104886,95397.0,95378.0,0.10196314]
[1768761469379,0.010486,95394.0,95378.0,0.10196314]
[1768761476085,0.010486,95391.0,95378.0,0.10196314]
[1768761480087,0.010487,95386.0,95378.0,0.10196314]
[1768761480287,0.010487,95386.0,95373.0,0.10190646]
[1768761480679,0.010487,95386.0,95374.0,0.10190646]
[1768761480880,0.20370345,95390.0,95371.0,0.07519852]
[1768761481184,0.09910794,95386.0,95368.0,0.07519852]
[1768761481393,0.010487,95382.0,95368.0,0.07519852]
[1768761481886,0.010487,95386.0,95368.0,0.07519852]
[1768761482979,0.010487,95386.0,95369.0,0.00147775]
[1768761484795,0.010487,95384.0,95368.0,0.07519852]
[1768761485095,0.10964074,95378.0,95364.0,0.00230747]
[1768761485282,0.010488,95374.0,95364.0,0.00230695]
[1768761485481,0.09910794,95379.0,95364.0,0.00230695]
[1768761485482,0.010488,95377.0,95364.0,0.00230695]
[1768761485891,0.09910794,95379.0,95364.0,0.00230695]
[1768761486889,0.10964074,95374.0,95351.0,0.00489431]
[1768761487089,0.10964074,95374.0,95352.0,0.00489431]
[1768761487286,0.09910794,95375.0,95352.0,0.00489431]
[1768761488285,0.09910794,95375.0,95356.0,0.01049]
[1768761488989,0.20874868,95375.0,95355.0,0.00378183]
[1768761489186,0.20874868,95374.0,95355.0,0.00378183]
[1768761489586,0.09910794,95372.0,95352.0,0.01427283]
[1768761489895,0.09910794,95372.0,95351.0,0.08707876]
[1768761489896,0.09910794,95368.0,95349.0,0.10719833]
[1768761490090,0.09910794,95365.0,95349.0,0.09670733]
[1768761492993,0.010489,95364.0,95349.0,0.09670733]
[1768761494305,0.010489,95364.0,95349.0,0.10836653]
[1768761494600,0.010489,95364.0,95349.0,0.01396653]
[1768761494798,0.09910794,95365.0,95349.0,0.10836653]
[1768761495493,0.10959694,95368.0,95350.0,0.00397267]
[1768761496195,0.010489,95366.0,95349.0,0.10836653]
[1768761496390,0.10959694,95366.0,95349.0,0.10836653]
[1768761497300,0.09910794,95365.0,95349.0,0.10836653]
[1768761498611,0.09910794,95363.0,95349.0,0.10836653]
[1768761499409,0.09910794,95370.0,95350.0,0.00441135]
[1768761500402,0.09910794,95370.0,95353.0,0.01049]
[1768761500598,0.10959694,95369.0,95351.0,0.010491]
[1768761500998,0.09910794,95369.0,95351.0,0.010491]
[1768761502320,0.09910794,95369.0,95353.0,0.01641185]
[1768761503700,0.09910794,95369.0,95349.0,0.12477938]
[1768761505005,0.010489,95368.0,95349.0,0.12477938]
[1768761505209,0.10070803,95368.0,95349.0,0.12477938]
[1768761506209,0.20182424,95356.0,95335.0,0.104892]
[1768761506410,0.10070903,95355.0,95335.0,0.0944]
[1768761506712,0.09021903,95355.0,95337.0,0.03071164]
[1768761507916,0.01049,95354.0,95337.0,0.03071164]
[1768761508608,0.010491,95351.0,95335.0,0.0944]
[1768761509009,0.10470336,95350.0,95335.0,0.0944]
[1768761509209,0.10470336,95350.0,95339.0,0.01199099]
[1768761509407,0.09021903,95347.0,95339.0,0.01199099]
[1768761509597,0.09021903,95345.0,95336.0,0.09444]
[1768761509801,0.09021903,95345.0,95339.0,0.001]
[1768761510108,0.09021903,95345.0,95331.0,0.09444]
[1768761510414,0.10470336,95341.0,95331.0,0.104933]
[1768761510602,7.579e-05,95340.0,95331.0,0.104933]
[1768761511510,7.579e-05,95340.0,95334.0,0.010493]
[1768761511710,7.579e-05,95340.0,95336.0,0.010492]
[1768761512917,0.09021903,95350.0,95331.0,0.13712328]
[1768761513213,0.19492239,95350.0,95341.0,0.010492]
[1768761513410,0.09021903,95350.0,95340.0,0.010492]
[1768761513608,0.09021903,95350.0,95340.0,0.11519536]
[1768761513797,0.09021903,95350.0,95340.0,0.010492]
[1768761515316,0.09021903,95350.0,95343.0,0.010492]
[1768761516406,0.09021903,95350.0,95343.0,0.011492]
[1768761519523,0.09021903,95350.0,95343.0,0.010492]
[1768761519821,0.09021903,95350.0,95343.0,0.011492]
[1768761520821,0.09021903,95350.0,95343.0,0.001]
[1768761522220,0.09464501,95348.0,95331.0,0.01149599]
[1768761522425,0.10470336,95341.0,95326.0,0.09444]
[1768761522624,0.10470336,95341.0,95329.0,0.01396824]
[1768761523624,0.10470336,95341.0,95331.0,0.001]
[1768761524527,0.10470336,95341.0,95330.0,0.010493]
[1768761525215,0.10470336,95341.0,95331.0,0.001]
[1768761525717,0.10470336,95341.0,95332.0,0.010493]
[1768761526116,0.00015732,95345.0,95331.0,0.001]
[1768761526320,0.08941275,95348.0,95338.0,0.010492]
[1768761527526,0.010489,95367.0,95338.0,0.10470336]
[1768761527713,0.09444,95367.0,95350.0,0.10470336]
[1768761528019,0.09444,95367.0,95357.0,0.01049]
[1768761528323,0.21308247,95367.0,95353.0,0.01049]
[1768761529313,9.5e-07,95364.0,95360.0,0.01049]
[1768761529630,8.4e-07,95369.0,95365.0,0.010489]
[1768761529813,3.6e-07,95380.0,95372.0,0.010488]
[1768761530019,0.12094894,95384.0,95370.0,0.10470336]
[1768761530218,4.7e-07,95384.0,95381.0,0.010487]
[1768761530420,0.11864247,95396.0,95381.0,0.010487]
[1768761530625,0.10470336,95391.0,95374.0,0.09846392]
[1768761530829,0.10470336,95391.0,95373.0,0.12917877]
[1768761530830,0.11864247,95390.0,95375.0,0.09444]
[1768761531219,0.22334583,95390.0,95379.0,0.00015732]
[1768761531821,0.11864247,95389.0,95379.0,0.00015732]
[1768761533615,0.11864247,95389.0,95380.0,0.010488]
[1768761533819,0.10470336,95390.0,95379.0,0.00015732]
[1768761534224,0.21383953,95390.0,95379.0,0.00015732]
[1768761534919,0.20116037,95389.0,95380.0,0.001]
[1768761535231,0.10913617,95388.0,95380.0,0.001]
[1768761535619,0.10913617,95388.0,95379.0,0.00015732]
[1768761536034,0.10913617,95388.0,95379.0,0.01064532]
[1768761537832,0.10913617,95388.0,95380.0,0.001]
[1768761538525,0.10913617,95388.0,95379.0,0.00015732]
[1768761541133,0.10913617,95387.0,95379.0,0.00015732]
[1768761542031,0.10913617,95387.0,95379.0,0.01064532]
[1768761542234,0.10913617,95387.0,95379.0,0.00015732]
[1768761543840,0.10913617,95387.0,95379.0,0.00115732]
[1768761545338,0.10913617,95387.0,95379.0,0.00015732]
[1768761547042,0.10913617,95387.0,95379.0,0.00115732]
[1768761547244,0.10913617,95386.0,95379.0,0.00115732]
[1768761547542,0.10913617,95386.0,95373.0,0.104888]
[1768761547732,0.10913617,95386.0,95375.0,0.010488]
[1768761548442,0.10913617,95386.0,95371.0,0.010488]
[1768761548639,0.20116037,95386.0,95374.0,0.010488]
[1768761548837,0.10913617,95384.0,95371.0,0.10484323]
[1768761549043,0.10913617,95381.0,95371.0,0.0944]
[1768761549336,0.10913617,95381.0,95370.0,0.11519236]
[1768761549538,0.10913617,95377.0,95366.0,0.0944]
[1768761549743,0.10913617,95377.0,95367.0,0.11519236]